bitfinex/quotes_SOLUSD_20240822
["timestamp","ask_amount","ask_price","bid_price","bid_amount"]
[1724329413619,15.5751,144.28,144.22,45.12549]
[1724329417690,16.9603681,144.28,144.21,25.87]
[1724329418108,16.9603681,144.28,144.19,25.87]
[1724329418497,15.5751,144.28,144.19,25.87]
[1724329418714,16.9603681,144.28,144.19,25.87]
[1724329418891,15.5751,144.28,144.21,25.87]
[1724329419824,15.5751,144.28,144.22,45.12549]
[1724329420339,15.5751,144.28,144.21,25.87]
[1724329420621,15.5751,144.28,144.19,20.0]
[1724329420921,15.5751,144.28,144.21,25.87]
[1724329421304,15.5751,144.28,144.22,45.0]
[1724329423935,1.3852681,144.27,144.15,53.58438153]
[1724329424138,16.2119,144.25,144.16,45.87]
[1724329424510,16.2119,144.25,144.18,25.87]
[1724329426517,16.2119,144.25,144.2,25.87]
[1724329426843,16.2119,144.25,144.21,1.3865327]
[1724329427633,16.2119,144.25,144.22,25.87]
[1724329427875,16.2119,144.25,144.23,1.3864292]
[1724329430542,16.2119,144.25,144.22,25.87]
[1724329430919,6.5328,144.26,144.23,1.38635769]
[1724329431121,6.5328,144.26,144.23,46.38635769]
[1724329431534,6.5328,144.26,144.23,45.0]
[1724329432131,6.5328,144.26,144.22,25.87]
[1724329433865,6.5328,144.26,144.23,1.38633115]
[1724329434250,6.5328,144.26,144.22,25.87]
[1724329436656,6.5328,144.26,144.23,11.72633574]
[1724329436958,6.5328,144.26,144.23,10.34]
[1724329437153,6.5328,144.26,144.24,1.38629478]
[1724329437959,6.5328,144.26,144.25,10.34]
[1724329438262,21.7039,144.29,144.25,10.34]
[1724329438434,21.7039,144.29,144.26,1.38615681]
[1724329441366,21.7039,144.29,144.27,10.34]
[1724329441536,21.7039,144.29,144.28,1.38605764]
[1724329442162,21.7039,144.29,144.27,10.34]
[1724329443037,28.66598906,144.33,144.27,10.34]
[1724329444155,28.66598906,144.33,144.29,10.34]
[1724329444360,21.4199,144.33,144.31,10.34]
[1724329448263,15.3605,144.33,144.31,10.34]
[1724329448567,6.5108,144.35,144.31,10.34]
[1724329448765,6.5108,144.35,144.32,1.38567792]
[1724329450941,6.5108,144.35,144.31,10.34]
[1724329451369,15.5793,144.36,144.33,10.34]
[1724329453374,15.5793,144.36,144.29,20.0]
[1724329453559,15.5793,144.36,144.32,10.34]
[1724329454648,13.33088258,144.39,144.32,10.34]
[1724329455052,13.33088258,144.39,144.3,45.25098]
[1724329455053,13.33088258,144.39,144.34,10.34]
[1724329455261,6.0878,144.39,144.34,10.34]
[1724329455568,7.4730681,144.39,144.34,10.34]
[1724329455747,6.0878,144.39,144.34,10.34]
[1724329456970,7.4730681,144.39,144.33,10.34]
[1724329458066,7.4730681,144.39,144.31,10.34]
[1724329458281,17.8130681,144.39,144.31,10.34]
[1724329459063,16.4278,144.39,144.32,1.38553725]
[1724329459371,6.0878,144.39,144.33,10.34]
[1724329459565,7.4730681,144.39,144.33,10.34]
[1724329459955,7.4730681,144.39,144.32,45.0]
[1724329460156,17.8130681,144.39,144.3,10.34]
[1724329461375,16.4278,144.39,144.31,1.38559973]
[1724329462188,7.4730681,144.39,144.32,10.34]
[1724329462562,6.0878,144.39,144.32,10.34]
[1724329462765,6.0878,144.39,144.34,10.34]
[1724329462993,6.0878,144.39,144.35,1.38531982]
[1724329464285,6.0878,144.39,144.36,10.34]
[1724329465169,6.0878,144.39,144.32,1.38528258]
[1724329465414,6.0878,144.39,144.36,10.34]
[1724329466163,15.4977,144.4,144.38,10.34]
[1724329466769,15.4977,144.4,144.36,10.34]
[1724329471977,15.3243,144.4,144.36,10.34]
[1724329472690,15.3243,144.4,144.33,20.25098]
[1724329472908,15.3243,144.4,144.36,10.34]
[1724329474803,6.6081,144.43,144.38,10.34]
[1724329475002,20.0,144.42,144.38,10.34]
[1724329479211,7.2407581,144.41,144.38,10.34]
[1724329480202,7.2407581,144.41,144.36,10.34]
[1724329482323,7.2407581,144.41,144.37,1.38501824]
[1724329482602,7.2407581,144.41,144.38,10.34]
[1724329482789,7.2407581,144.41,144.39,1.38494156]
[1724329483179,15.9193,144.43,144.4,10.34]
[1724329483379,23.3907054,144.47,144.41,1.38474869]
[1724329484201,20.0,144.46,144.41,1.38474869]
[1724329484405,23.3907054,144.47,144.41,1.38474869]
[1724329485414,23.3907054,144.47,144.4,10.34]
[1724329485616,1.3852681,144.46,144.4,10.34]
[1724329485986,1.3852681,144.46,144.38,10.34]
[1724329486479,11.7252681,144.46,144.38,10.34]
[1724329486686,1.3852681,144.45,144.35,20.0]
[1724329487010,1.3852681,144.45,144.36,30.34]
[1724329487218,17.2627,144.46,144.37,1.38496517]
[1724329487388,17.2627,144.46,144.38,10.34]
[1724329487710,23.3907054,144.47,144.39,1.38487393]
[1724329487923,30.3126054,144.47,144.4,10.34]
[1724329488111,20.0,144.46,144.4,10.34]
[1724329488709,21.3852681,144.46,144.38,10.34]
[1724329488908,1.3852681,144.45,144.38,10.34]
[1724329492524,11.7252681,144.45,144.36,30.34]
[1724329493022,11.7252681,144.45,144.38,10.34]
[1724329493023,1.3852681,144.45,144.38,10.34]
[1724329493798,7.23964024,144.44,144.38,10.34]
[1724329497215,1.3852681,144.43,144.36,20.0]
[1724329497514,1.3852681,144.43,144.37,10.34]
[1724329498214,1.3852681,144.43,144.35,20.12549]
[1724329498410,1.3852681,144.43,144.36,45.0]
[1724329498605,1.3852681,144.43,144.37,10.34]
[1724329500621,1.3852681,144.43,144.34,20.0]
[1724329500622,22.5434,144.42,144.34,20.0]
[1724329500931,22.5434,144.42,144.32,15.8923]
[1724329500932,22.5434,144.42,144.35,11.72531634]
[1724329501101,22.5434,144.42,144.37,10.34]
[1724329501434,22.5434,144.42,144.39,10.34]
[1724329501608,22.5434,144.42,144.38,1.38501088]
[1724329501808,22.5434,144.42,144.38,10.34]
[1724329502426,22.5434,144.42,144.34,41.36]
[1724329502722,22.5434,144.42,144.38,10.34]
[1724329503303,16.2655,144.42,144.39,1.38486827]
[1724329503539,7.23964024,144.44,144.39,1.38486827]
[1724329504836,7.23964024,144.44,144.38,10.34]
[1724329506702,7.23964024,144.44,144.4,10.34]
[1724329509608,7.23964024,144.44,144.35,85.25098]
[1724329509830,7.23964024,144.44,144.39,10.34]
[1724329511640,7.23964024,144.44,144.35,85.25098]
[1724329511820,7.23964024,144.44,144.39,10.34]
[1724329513233,1.3852681,144.43,144.35,65.25098]
[1724329513425,1.3852681,144.43,144.37,10.34]
[1724329513850,1.3852681,144.43,144.35,20.0]
[1724329514010,1.3852681,144.43,144.35,10.34]
[1724329514336,17.58103959,144.42,144.35,10.34]
[1724329514526,1.3852681,144.41,144.35,10.34]
[1724329514731,1.3852681,144.41,144.32,15.8923]
[1724329514930,1.3852681,144.41,144.34,10.34]
[1724329516918,1.3852681,144.41,144.32,15.8923]
[1724329516919,22.2149,144.4,144.32,10.34]
[1724329517129,1.3852681,144.39,144.32,10.34]
[1724329519441,22.2149,144.4,144.33,1.38549591]
[1724329519618,22.2149,144.4,144.33,46.38549591]
[1724329520448,22.2149,144.4,144.33,56.72549591]
[1724329523519,22.2149,144.4,144.33,45.0]
[1724329523719,1.3852681,144.39,144.32,45.12549]
[1724329524347,1.3852681,144.39,144.32,55.34]
[1724329524721,8.6277663,144.39,144.32,55.34]
[1724329528442,7.2424982,144.39,144.32,55.34]
[1724329529049,8.6277663,144.39,144.32,55.34]
[1724329530547,7.2424982,144.39,144.32,55.34]
[1724329536560,7.2424982,144.39,144.33,1.38541182]
[1724329537054,7.2424982,144.39,144.32,55.34]
[1724329537257,7.2424982,144.39,144.34,10.34]
[1724329537553,7.2424982,144.39,144.36,10.34]
[1724329537857,7.2424982,144.39,144.36,11.72516165]
[1724329538032,7.2424982,144.39,144.36,10.34]
[1724329538354,22.2149,144.4,144.36,10.34]
[1724329539327,22.2149,144.4,144.37,1.3851641]
[1724329540643,22.2149,144.4,144.36,10.34]
[1724329541452,23.6001681,144.4,144.36,10.34]
[1724329542257,23.6001681,144.4,144.33,0.12549]
[1724329542440,23.6001681,144.4,144.34,10.34]
[1724329542755,22.2149,144.4,144.34,10.34]
[1724329544756,22.2149,144.4,144.36,10.34]
[1724329545754,22.2149,144.4,144.37,1.38520424]
[1724329546146,22.2149,144.4,144.36,10.34]
[1724329547660,23.6001681,144.4,144.36,10.34]
[1724329548470,22.2149,144.4,144.36,10.34]
[1724329549355,22.2149,144.4,144.37,1.38522725]
[1724329550476,22.2149,144.4,144.36,10.34]
[1724329551469,22.2149,144.4,144.37,1.38516285]
[1724329551637,22.2149,144.4,144.36,10.34]
[1724329551848,22.2149,144.4,144.38,10.34]
[1724329552371,15.8732,144.4,144.38,10.34]
[1724329556265,13.31423032,144.44,144.38,10.34]
[1724329556464,29.14043032,144.44,144.39,1.3849291]
[1724329557370,29.14043032,144.44,144.4,10.34]
[1724329561480,29.14043032,144.44,144.39,10.34]
[1724329566385,1.3852681,144.43,144.39,10.34]
[1724329566700,1.3852681,144.43,144.34,41.36]
[1724329566860,1.3852681,144.43,144.35,20.0]
[1724329567060,11.7252681,144.43,144.35,10.34]
[1724329567277,11.7252681,144.43,144.32,4.04101297]
[1724329567475,11.7252681,144.43,144.34,10.34]
[1724329567476,18.6490681,144.43,144.34,10.34]
[1724329567778,23.21364679,144.42,144.34,10.34]
[1724329567969,1.3852681,144.41,144.34,10.34]
[1724329576998,24.59891489,144.42,144.34,10.34]
[1724329577205,23.21364679,144.42,144.36,10.34]
[1724329578303,23.21364679,144.42,144.38,10.34]
[1724329578479,15.9723,144.42,144.38,10.34]
[1724329583687,15.9723,144.42,144.36,10.34]
[1724329584900,1.3852681,144.41,144.36,10.34]
[1724329585087,17.3575681,144.42,144.36,10.34]
[1724329585290,17.3575681,144.42,144.35,45.12549]
[1724329585521,6.0795,144.41,144.34,10.34]
[1724329585692,1.3852681,144.4,144.34,10.34]
[1724329585891,1.3852681,144.4,144.34,15.46802852]
[1724329586090,1.3852681,144.4,144.34,10.34]
[1724329586386,1.3852681,144.4,144.34,15.46802852]
[1724329586593,1.3852681,144.4,144.34,10.34]
[1724329586912,1.3852681,144.4,144.34,15.46802852]
[1724329587076,1.3852681,144.4,144.34,10.34]
[1724329587281,1.3852681,144.4,144.34,15.46802852]
[1724329587608,1.3852681,144.4,144.34,10.34]
[1724329587800,1.3852681,144.4,144.34,15.46802852]
[1724329588105,1.3852681,144.4,144.34,10.34]
[1724329588481,1.3852681,144.4,144.34,15.46788111]
[1724329588804,1.3852681,144.4,144.34,10.34]
[1724329589177,1.3852681,144.4,144.34,15.46788111]
[1724329589381,1.3852681,144.4,144.34,10.34]
[1724329590297,1.3852681,144.4,144.34,15.46803978]
[1724329590490,1.3852681,144.4,144.34,10.34]
[1724329591086,1.3852681,144.4,144.34,15.46801975]
[1724329591285,1.3852681,144.4,144.35,5.12801975]
[1724329592188,1.3852681,144.4,144.34,10.34]
[1724329594207,13.32096651,144.41,144.34,10.34]
[1724329595394,13.32096651,144.41,144.35,1.38529532]
[1724329596305,13.32096651,144.41,144.36,11.72529573]
[1724329596892,13.32096651,144.41,144.36,10.34]
[1724329601313,13.32096651,144.41,144.36,11.72518845]
[1724329602303,13.32096651,144.41,144.36,10.34]
[1724329602500,6.0795,144.41,144.36,10.34]
[1724329603831,6.0795,144.41,144.35,45.0]
[1724329603991,6.0795,144.41,144.35,55.34]
[1724329607125,6.0795,144.41,144.35,45.0]
[1724329607424,6.0795,144.41,144.35,55.34]
[1724329608226,6.0795,144.41,144.35,10.34]
[1724329609407,6.0795,144.41,144.36,1.38524197]
[1724329609907,6.0795,144.41,144.35,10.34]
[1724329611103,6.0795,144.41,144.32,20.0]
[1724329611305,6.0795,144.41,144.35,10.34]
[1724329611510,1.3852681,144.4,144.35,10.34]
[1724329611915,6.0795,144.41,144.35,10.34]
[1724329612401,7.4647681,144.41,144.35,10.34]
[1724329613027,7.24192335,144.4,144.35,10.34]
[1724329613533,7.24192335,144.4,144.34,10.34]
[1724329614112,7.24192335,144.4,144.33,45.12549]
[1724329614319,7.24192335,144.4,144.35,10.34]
[1724329614535,7.24192335,144.4,144.33,0.12549]
[1724329614706,7.24192335,144.4,144.35,10.34]
[1724329615810,7.24192335,144.4,144.33,0.12549]
[1724329616009,7.24192335,144.4,144.34,15.46493569]
[1724329616210,7.24192335,144.4,144.34,10.34]
[1724329619633,16.4619681,144.39,144.31,7.36760807]
[1724329619936,6.3891,144.38,144.32,5.1256722]
[1724329620148,1.3852681,144.37,144.3,10.34]
[1724329620307,15.7619,144.36,144.31,5.12763105]
[1724329620512,1.3852681,144.35,144.28,17.276]
[1724329622028,6.2414,144.34,144.28,17.276]
[1724329622815,1.3852681,144.33,144.28,17.276]
[1724329623534,7.6266681,144.34,144.28,17.276]
[1724329624626,6.2414,144.34,144.28,17.276]
[1724329625728,1.3852681,144.33,144.28,17.276]
[1724329626115,6.2414,144.34,144.28,17.276]
[1724329626434,6.2414,144.34,144.29,53.32182749]
[1724329628613,1.3852681,144.33,144.24,10.64006499]
[1724329628817,1.3852681,144.33,144.27,10.34]
[1724329630221,15.861,144.32,144.23,20.0]
[1724329630520,15.861,144.32,144.25,10.34]
[1724329631944,15.861,144.32,144.27,10.34]
[1724329633134,1.3852681,144.31,144.25,10.34]
[1724329633330,17.2462681,144.32,144.25,10.34]
[1724329634845,15.861,144.32,144.25,10.34]
[1724329637235,17.2462681,144.32,144.25,10.34]
[1724329638124,15.861,144.32,144.26,1.38609868]
[1724329638324,17.2462681,144.32,144.25,10.34]
[1724329638634,15.0692,144.29,144.23,4.04031765]
[1724329638825,15.0692,144.29,144.17,20.0]
[1724329638826,7.5979681,144.28,144.2,10.34]
[1724329639160,7.5979681,144.28,144.19,4.04031765]
[1724329639161,17.9379681,144.28,144.19,4.04031765]
[1724329639325,17.9379681,144.28,144.18,4.04031765]
[1724329639523,15.0347,144.27,144.19,10.34]
[1724329639864,1.3852681,144.26,144.18,10.34]
[1724329640357,1.3852681,144.26,144.17,4.0428811]
[1724329640528,11.7252681,144.26,144.18,10.34]
[1724329640834,11.7252681,144.26,144.18,14.3828811]
[1724329641423,6.3322,144.25,144.18,10.34]
[1724329641635,1.3852681,144.24,144.18,10.34]
[1724329642425,6.3322,144.25,144.18,10.34]
[1724329645251,6.3322,144.25,144.19,45.0]
[1724329646170,6.3322,144.25,144.2,10.34]
[1724329646345,6.3322,144.25,144.2,11.72672367]
[1724329650364,6.3322,144.25,144.22,10.34]
[1724329651279,7.24345782,144.26,144.24,10.34]
[1724329651437,15.0347,144.27,144.24,10.34]
[1724329653245,6.6446,144.28,144.26,10.34]
[1724329653854,15.0761,144.31,144.26,10.34]
[1724329654241,15.0761,144.31,144.27,1.38610653]
[1724329654864,15.0761,144.31,144.23,0.12549]
[1724329655049,15.0761,144.31,144.26,10.34]
[1724329655745,16.4613681,144.31,144.23,0.25098]
[1724329655944,16.4613681,144.31,144.24,10.34]
[1724329664585,16.4613681,144.31,144.2,76.8016]
[1724329664757,16.4613681,144.31,144.24,10.34]
[1724329665557,16.746,144.3,144.22,14.38451328]
[1724329665878,1.3852681,144.29,144.22,14.38451328]
[1724329666080,1.3852681,144.29,144.22,10.34]
[1724329667499,23.97465702,144.3,144.18,29.09434967]
[1724329667500,15.01992512,144.3,144.24,10.34]
[1724329670177,13.63465702,144.3,144.25,1.38634773]
[1724329670596,1.3852681,144.29,144.24,10.34]
[1724329672990,13.63465702,144.3,144.24,10.34]
[1724329673155,13.63465702,144.3,144.26,10.34]
[1724329673360,6.406,144.3,144.26,10.34]
[1724329673576,6.406,144.3,144.26,11.72605622]
[1724329674189,6.406,144.3,144.26,10.34]
[1724329674878,1.3852681,144.29,144.24,10.34]
[1724329676276,1.3852681,144.29,144.22,10.34]
[1724329680298,16.5383,144.28,144.19,20.0]
[1724329680622,16.5383,144.28,144.23,10.34]
[1724329684083,1.3852681,144.27,144.21,10.34]
[1724329684296,1.3852681,144.27,144.22,45.0]
[1724329685574,17.9235681,144.28,144.22,45.0]
[1724329686194,16.5383,144.28,144.23,10.34]
[1724329686411,8.62730024,144.29,144.23,10.34]
[1724329687326,7.24203214,144.29,144.25,10.34]
[1724329687627,6.406,144.3,144.27,10.34]
[1724329689628,7.24545966,144.33,144.27,10.34]
[1724329691909,1.3852681,144.32,144.25,10.34]
[1724329698111,7.24545966,144.33,144.27,10.34]
[1724329698323,17.2674,144.36,144.27,10.34]
[1724329698508,7.24333744,144.33,144.27,10.34]
[1724329698914,1.3852681,144.35,144.27,10.34]
[1724329699116,7.24334114,144.32,144.27,10.34]
[1724329699309,1.3852681,144.35,144.27,10.34]
[1724329699514,20.0,144.34,144.27,10.34]
[1724329699828,8.6286496,144.33,144.27,10.34]
[1724329701599,7.2433815,144.33,144.29,10.34]
[1724329701923,7.2433815,144.33,144.3,1.38589925]
[1724329704415,7.2433815,144.33,144.29,10.34]
[1724329708632,7.2433815,144.33,144.24,0.12549]
[1724329708817,1.3852681,144.32,144.24,20.0]
[1724329709336,1.3852681,144.32,144.25,10.34]
[1724329709532,1.3852681,144.32,144.26,20.0]
[1724329712232,1.3852681,144.32,144.25,10.34]
[1724329712432,1.3852681,144.32,144.21,20.0]
[1724329712637,1.3852681,144.32,144.22,65.25098]
[1724329715220,21.3852681,144.32,144.22,65.12549]
[1724329715933,7.24678924,144.31,144.22,65.12549]
[1724329716125,1.3852681,144.3,144.22,65.12549]
[1724329716732,1.3852681,144.29,144.22,65.12549]
[1724329717416,7.24678924,144.31,144.22,65.12549]
[1724329717939,7.24678924,144.31,144.23,1.38637724]
[1724329718144,7.24678924,144.31,144.24,0.12549]
[1724329718319,7.24678924,144.31,144.24,20.12549]
[1724329718522,1.3852681,144.38,144.25,45.12549]
[1724329718721,7.24571521,144.33,144.25,45.12549]
[1724329718915,1.3852681,144.32,144.25,45.0]
[1724329719127,7.24589994,144.33,144.25,45.0]
[1724329719330,1.3852681,144.32,144.25,45.0]
[1724329720335,7.24589994,144.33,144.26,1.38617498]
[1724329720529,7.24589994,144.33,144.25,45.0]
[1724329721225,7.24589994,144.33,144.26,1.3860205]
[1724329721434,7.24589994,144.33,144.27,1.38601787]
[1724329722223,26.9262,144.38,144.27,1.38601787]
[1724329722416,7.24445501,144.37,144.27,46.38601787]
[1724329724119,20.0,144.36,144.27,46.38601787]
[1724329724324,21.3852681,144.36,144.28,0.25098]
[1724329724739,7.24445501,144.37,144.28,21.63670002]
[1724329724937,7.24445501,144.37,144.29,45.0]
[1724329725133,7.24445501,144.37,144.3,1.38571148]
[1724329726652,7.24445501,144.37,144.29,45.0]
[1724329726834,7.24445501,144.37,144.31,20.0]
[1724329727140,16.80617148,144.43,144.32,46.63630729]
[1724329727338,16.80617148,144.43,144.33,1.38532429]
[1724329727339,7.24180876,144.42,144.33,1.38532429]
[1724329727932,1.3852681,144.41,144.32,65.0]
[1724329728130,1.3852681,144.41,144.32,20.0]
[1724329728338,14.16610876,144.42,144.28,20.0]
[1724329728547,14.16610876,144.42,144.29,46.63651913]
[1724329728848,0.25098,144.41,144.3,21.38555462]
[1724329729142,20.25098,144.41,144.31,45.0]
[1724329729442,0.25098,144.41,144.32,21.3855543]
[1724329729641,0.25098,144.41,144.33,1.38555397]
[1724329729642,20.25098,144.41,144.33,1.38555397]
[1724329730340,20.25098,144.41,144.32,20.0]
[1724329730545,20.25098,144.41,144.32,21.38555578]
[1724329730947,20.25098,144.41,144.33,1.38555368]
[1724329731426,1.3852681,144.4,144.32,20.0]
[1724329731948,20.25098,144.41,144.32,20.0]
[1724329732326,1.3852681,144.4,144.32,20.0]
[1724329732527,1.3852681,144.39,144.32,20.0]
[1724329733466,20.25098,144.41,144.32,20.0]
[1724329733627,20.25098,144.41,144.32,21.38555438]
[1724329733829,20.25098,144.41,144.32,20.0]
[1724329734537,20.25098,144.41,144.32,21.38555389]
[1724329736641,1.3852681,144.4,144.32,20.0]
[1724329736953,1.3852681,144.39,144.32,20.0]
[1724329737830,1.3852681,144.39,144.31,45.0]
[1724329738038,21.3852681,144.39,144.29,0.25098]
[1724329738339,21.3852681,144.39,144.25,27.99975353]
[1724329738852,26.9258,144.39,144.25,27.99975353]
[1724329739040,0.12549,144.38,144.25,27.99975353]
[1724329739447,1.5107581,144.38,144.25,27.99975353]
[1724329739836,1.5107581,144.38,144.26,20.0]
[1724329740032,1.5107581,144.38,144.27,45.25098]
[1724329740233,1.5107581,144.38,144.28,20.0]
[1724329740447,1.5107581,144.38,144.29,45.0]
[1724329740755,1.3852681,144.38,144.29,45.0]
[1724329743141,6.9269,144.37,144.29,45.0]
[1724329743358,1.3852681,144.36,144.29,45.0]
[1724329743567,1.3852681,144.35,144.23,20.0]
[1724329744635,20.0,144.36,144.24,1.38602289]
[1724329744841,20.0,144.36,144.25,0.25098]
[1724329745347,20.0,144.36,144.25,21.63699531]
[1724329745549,20.0,144.36,144.26,45.0]
[1724329745750,20.0,144.36,144.27,21.38602058]
[1724329745958,20.0,144.36,144.27,20.0]
[1724329746259,20.0,144.36,144.27,21.38602161]
[1724329746778,20.0,144.37,144.27,21.38602161]
[1724329747059,1.3852681,144.35,144.28,45.25098]
[1724329747356,1.3852681,144.37,144.28,45.25098]
[1724329747968,27.24383805,144.38,144.29,1.38573322]
[1724329748775,1.3852681,144.37,144.28,45.25098]
[1724329752748,27.24383805,144.38,144.28,45.25098]
[1724329753467,27.24383805,144.38,144.29,1.38573705]
[1724329754070,27.24383805,144.38,144.3,1.38573224]
[1724329754470,1.3852681,144.37,144.3,45.0]
[1724329755573,1.3852681,144.37,144.29,20.0]
[1724329755771,1.3852681,144.37,144.26,20.0]
[1724329755972,1.3852681,144.37,144.27,45.25098]
[1724329756159,1.3852681,144.37,144.28,20.0]
[1724329759762,34.17003805,144.38,144.28,21.38581321]
[1724329760082,0.25098,144.37,144.28,21.38581321]
[1724329763061,7.2443488,144.36,144.28,21.38581321]
[1724329764281,7.2443488,144.36,144.29,45.0]
[1724329764482,7.2443488,144.36,144.3,1.38573952]
[1724329764986,1.3852681,144.35,144.29,45.0]
[1724329765196,1.3852681,144.35,144.28,20.0]
[1724329765488,1.3852681,144.35,144.27,0.12549]
[1724329765666,1.3852681,144.35,144.27,45.12549]
[1724329765870,1.3852681,144.35,144.28,20.0]
[1724329766478,7.2443488,144.36,144.29,1.3857945]
[1724329767267,7.2443488,144.36,144.29,45.0]
[1724329768192,1.3852681,144.35,144.28,20.0]
[1724329768492,1.3852681,144.35,144.27,0.12549]
[1724329768790,1.3852681,144.35,144.27,45.25098]
[1724329768991,1.3852681,144.35,144.28,20.0]
[1724329772186,1.3852681,144.35,144.0,29.22110587]
[1724329772187,0.12549,144.34,144.21,37.0941032]
[1724329772371,1.3852681,144.33,144.21,37.0941032]
[1724329772571,1.3852681,144.32,144.21,37.0941032]
[1724329773486,7.24578194,144.32,144.21,37.0941032]
[1724329773690,1.3852681,144.31,144.21,37.0941032]
[1724329773886,7.24578194,144.32,144.21,37.0941032]
[1724329774085,8.63105004,144.32,144.21,37.0941032]
[1724329774290,8.63105004,144.32,144.22,20.0]
[1724329774498,8.63105004,144.32,144.23,45.25098]
[1724329774680,8.63105004,144.32,144.24,20.0]
[1724329774885,8.63105004,144.32,144.25,45.0]
[1724329775101,7.24578194,144.32,144.25,45.0]
[1724329776587,7.24578194,144.32,144.26,1.38614514]
[1724329776788,7.24578194,144.32,144.25,45.0]
[1724329778695,7.24578194,144.32,144.25,65.0]
[1724329778894,7.24578194,144.32,144.26,1.63688688]
[1724329779192,7.24578194,144.32,144.27,1.38584754]
[1724329779389,7.24578194,144.32,144.26,0.25098]
[1724329779583,7.24578194,144.32,144.28,1.38584929]
[1724329780089,7.24578194,144.32,144.27,45.0]
[1724329780389,7.24578194,144.32,144.28,1.38584924]
[1724329780588,13.83332848,144.39,144.29,0.12549]
[1724329780799,7.2439638,144.37,144.29,45.12549]
[1724329780992,7.2439638,144.37,144.3,1.38568695]
[1724329782078,7.2439638,144.37,144.31,1.38568282]
[1724329782279,7.2439638,144.37,144.29,45.12549]
[1724329782280,7.2439638,144.37,144.3,0.12549]
[1724329782893,7.2439638,144.37,144.3,1.51104076]
[1724329783576,7.2439638,144.37,144.3,0.12549]
[1724329783972,7.2439638,144.37,144.29,45.12549]
[1724329783973,1.3852681,144.36,144.29,45.12549]
[1724329784507,1.3852681,144.36,144.29,45.0]
[1724329785288,7.2439638,144.37,144.28,20.0]
[1724329785489,20.0,144.36,144.24,20.0]
[1724329785810,20.0,144.36,144.23,20.0]
[1724329785811,26.9273,144.36,144.23,20.0]
[1724329786009,0.12549,144.35,144.23,20.0]
[1724329786315,6.9281,144.34,144.21,29.09434967]
[1724329786522,0.25098,144.35,144.21,29.09434967]
[1724329787101,0.25098,144.35,144.23,20.0]
[1724329787614,0.25098,144.35,144.24,20.0]
[1724329788020,0.25098,144.35,144.25,45.0]
[1724329789721,0.12549,144.35,144.25,45.0]
[1724329790019,26.9275,144.36,144.25,45.0]
[1724329790321,20.0,144.36,144.26,0.25098]
[1724329791124,7.24241569,144.35,144.26,0.25098]
[1724329791322,20.0,144.34,144.26,0.25098]
[1724329796708,7.24241569,144.35,144.26,20.25098]
[1724329796906,7.24241569,144.35,144.27,45.0]
[1724329797921,7.24241569,144.35,144.28,0.25098]
[1724329800296,7.24241569,144.35,144.26,20.0]
[1724329800492,20.0,144.34,144.2,20.0]
[1724329800723,20.0,144.34,144.23,20.0]
[1724329801222,20.0,144.34,144.21,37.73391765]
[1724329801442,7.49428046,144.33,144.18,20.0]
[1724329801743,6.93,144.3,144.16,29.09434967]
[1724329801903,6.93,144.3,144.18,20.0]
[1724329802103,6.9311,144.28,144.17,8.63956798]
[1724329802346,26.9314,144.27,144.16,9.09434967]
[1724329802632,6.9329,144.24,144.12,9.09434967]
[1724329802801,6.9333,144.23,144.12,9.09434967]
[1724329803001,0.12549,144.24,144.12,9.09434967]
[1724329803201,6.9337,144.23,144.12,9.09434967]
[1724329803543,0.12549,144.24,144.12,9.09434967]
[1724329803698,20.0,144.25,144.13,28.16087909]
[1724329803898,20.0,144.25,144.15,20.0]